[Event "FIDE WCCC Girls-12 2024"]
[Site "Montesilvano"]
[Date "2024.11.18"]
[Round "2.24"]
[White "Ivanova, Gabriela"]
[Black "Sunea, Sara Maria"]
[Result "0-1"]
[ECO "D02"]
[WhiteElo "1680"]
[BlackElo "1823"]
[PlyCount "104"]
[EventDate "2024.11.18"]
[EventType "swiss"]
[EventCountry "ITA"]
[TimeControl "5400+30"]

1. d4 {[%emt 0:00:04]} Nf6 {[%emt 0:00:12]} 2. Nf3 {[%emt 0:00:34]} c5 {[%emt 0:00:07]} 3. dxc5 {[%emt 0:01:01]} e6 {[%emt 0:00:13]} 4. g3 {[%emt 0:01:03]} Bxc5 {[%emt 0:00:20]} 5. Bg2 {[%emt 0:00:52]} d5 {[%emt 0:00:45]} 6. O-O {[%emt 0:05:22]} O-O {[%emt 0:00:34]} 7. Bf4 {[%emt 0:02:11]} Nc6 {[%emt 0:02:00]} 8. Re1 {[%emt 0:03:05]} Qb6 {[%emt 0:02:32]} 9. e3 {[%emt 1:20:48]} Qxb2 {[%emt 0:06:05]} 10. Nbd2 {[%emt 0:00:30]} Qb6 {[%emt 1:22:42]} 11. Rb1 {[%emt 0:00:00]} Qd8 {[%emt 0:00:30]} 12. Ne5 {[%emt 0:00:00]} Bd6 {[%emt 0:00:00]} 13. Nxc6 {[%emt 0:00:00]} bxc6 {[%emt 0:00:00]} 14. Bxd6 {[%emt 0:00:00]} Qxd6 {[%emt 0:00:00]} 15. c4 {[%emt 0:02:30]} Ba6 {[%emt 0:02:00]} 16. e4 {[%emt 0:00:00]} dxe4 {[%emt 0:00:00]} 17. Nxe4 {[%emt 0:00:00]} Nxe4 {[%emt 0:00:00]} 18. Rxe4 {[%emt 0:00:00]} Rad8 {[%emt 0:00:00]} 19. Qxd6 {[%emt 0:00:00]} Rxd6 {[%emt 0:02:00]} 20. c5 {[%emt 0:00:00]} Rd7 {[%emt 0:00:00]} 21. Ra4 {[%emt 0:00:00]} Bb5 {[%emt 0:00:00]} 22. Ra5 {[%emt 0:00:00]} Rfd8 {[%emt 0:00:00]} 23. Bf3 {[%emt 0:00:00]} Rc7 {[%emt 0:00:00]} 24. a4 {[%emt 0:00:00]} Bc4 {[%emt 0:00:00]} 25. Rb4 {[%emt 0:00:00]} Bd5 {[%emt 0:00:00]} 26. Be2 {[%emt 0:00:00]} Kf8 {[%emt 0:00:00]} 27. f4 {[%emt 0:00:00]} Ke7 {[%emt 0:00:00]} 28. Ba6 {[%emt 0:00:00]} Kf6 {[%emt 0:00:00]} 29. Bb7 {[%emt 0:00:00]} Rdd7 {[%emt 0:00:00]} 30. Rxa7 {[%emt 0:00:00]} Bc4 {[%emt 0:00:00]} 31. a5 {[%emt 0:00:00]} Bb5 {[%emt 0:00:00]} 32. a6 {[%emt 0:00:00]} Bxa6 {[%emt 0:00:00]} 33. Rxa6 {[%emt 0:00:00]} Rxb7 {[%emt 0:00:00]} 34. Rxb7 {[%emt 0:00:00]} Rxb7 {[%emt 0:00:00]} 35. Rxc6 {[%emt 0:00:11]} Rb1+ {[%emt 0:00:00]} 36. Kg2 {[%emt 0:00:46]} Rc1 {[%emt 0:00:00]} 37. Rc7 {[%emt 0:00:31]} h5 {[%emt 0:00:58]} 38. c6 {[%emt 0:00:40]} g6 {[%emt 0:00:14]} 39. Kh3 {[%emt 0:01:48]} Rc2 {[%emt 0:00:21]} 40. Rc8 {[%emt 0:01:24]} Kf5 {[%emt 0:03:08]} 41. Rc7 {[%emt 0:01:52]} f6 {[%emt 0:00:23]} 42. Rc8 {[%emt 0:01:06]} e5 {[%emt 0:03:30]} 43. fxe5 {[%emt 0:05:42]} g5 {[%emt 0:00:33]} 44. g4+ {[%emt 0:00:00]} hxg4+ {[%emt 0:00:06]} 45. Kg3 {[%emt 0:00:00]} Rc3+ {[%emt 0:00:34]} 46. Kg2 {[%emt 0:00:00]} Kxe5 {[%emt 0:00:21]} 47. c7 {[%emt 0:00:00]} Kf5 {[%emt 0:00:55]} 48. Kf2 {[%emt 0:00:05]} g3+ {[%emt 0:01:08]} 49. hxg3 {[%emt 0:00:20]} Kg4 {[%emt 0:00:10]} 50. Rf8 {[%emt 0:02:20]} Rxc7 {[%emt 0:00:22]} 51. Rxf6 {[%emt 0:00:07]} Rc2+ {[%emt 0:00:02]} 52. Ke3 {[%emt 0:00:30]} Kxg3 {[%emt 0:03:45]} 0-1

[Event "FIDE WCCC Girls-12 2024"]
[Site "Montesilvano"]
[Date "2024.11.18"]
[Round "2.27"]
[White "Zavivaeva, Angelina"]
[Black "Ribreau, Anna"]
[Result "1/2-1/2"]
[ECO "B07"]
[WhiteElo "1499"]
[BlackElo "1726"]
[PlyCount "124"]
[EventDate "2024.11.18"]
[EventType "swiss"]
[EventCountry "ITA"]
[TimeControl "5400+30"]

1. e4 {[%emt 0:00:03]} d6 {[%emt 0:02:00]} 2. d4 {[%emt 0:00:05]} Nf6 {[%emt 0:00:19]} 3. Nc3 {[%emt 0:00:21]} c6 {[%emt 0:00:43]} 4. f3 {[%emt 0:01:26]} Nbd7 {[%emt 0:02:26]} 5. Be3 {[%emt 0:02:50]} e5 {[%emt 0:01:44]} 6. Qd2 {[%emt 0:02:58]} Be7 {[%emt 0:04:33]} 7. O-O-O {[%emt 0:07:11]} b5 {[%emt 0:02:33]} 8. d5 {[%emt 0:07:38]} cxd5 {[%emt 0:18:44]} 9. Nxd5 {[%emt 0:05:44]} Nxd5 {[%emt 0:02:30]} 10. Qxd5 {[%emt 0:00:57]} Ba6 {[%emt 0:01:51]} 11. Qc6 {[%emt 0:03:48]} Qc8 {[%emt 0:03:12]} 12. Bxb5 {[%emt 0:03:41]} Bxb5 {[%emt 0:00:24]} 13. Qxb5 {[%emt 0:00:44]} Rb8 {[%emt 0:00:24]} 14. Qa4 {[%emt 0:06:37]} Qb7 {[%emt 0:01:28]} 15. Qb3 {[%emt 0:04:13]} Qa6 {[%emt 0:03:49]} 16. Qa3 {[%emt 0:08:09]} Qb7 {[%emt 0:02:51]} 17. b3 {[%emt 0:07:16]} a6 {[%emt 0:03:28]} 18. Qb2 {[%emt 0:03:48]} O-O {[%emt 0:03:33]} 19. h4 {[%emt 0:01:49]} Rfc8 {[%emt 0:02:01]} 20. Ne2 {[%emt 0:04:47]} Nb6 {[%emt 0:01:00]} 21. Bxb6 {[%emt 0:01:57]} Qxb6 {[%emt 0:00:06]} 22. Rd2 {[%emt 0:03:00]} a5 {[%emt 0:02:40]} 23. Nc3 {[%emt 0:02:46]} Qb7 {[%emt 0:08:06]} 24. g3 {[%emt 0:10:14]} g5 {[%emt 0:05:30]} 25. Nd5 {[%emt 0:03:08]} a4 {[%emt 0:03:30]} 26. hxg5 {[%emt 0:00:29]} Bxg5 {[%emt 0:06:01]} 27. f4 {[%emt 0:00:15]} Bd8 {[%emt 0:00:59]} 28. Rd3 {[%emt 0:02:40]} f6 {[%emt 0:02:15]} 29. f5 {[%emt 0:01:58]} Qg7 {[%emt 0:04:13]} 30. Qa3 {[%emt 0:01:02]} axb3 {[%emt 0:00:52]} 31. Rxb3 {[%emt 0:01:23]} Qg5+ {[%emt 0:01:47]} 32. Kb1 {[%emt 0:01:08]} Qd2 {[%emt 0:02:06]} 33. Qb2 {[%emt 0:01:48]} Qg2 {[%emt 0:05:08]} 34. Re1 {[%emt 0:00:36]} Qf2 {[%emt 0:00:12]} 35. Rc1 {[%emt 0:00:31]} Qa7 {[%emt 0:00:46]} 36. Rh1 {[%emt 0:00:41]} Rxb3 {[%emt 0:00:47]} 37. cxb3 {[%emt 0:00:37]} Qg7 {[%emt 0:00:54]} 38. Qh2 {[%emt 0:00:36]} Be7 {[%emt 0:00:45]} 39. g4 {[%emt 0:00:30]} Rb8 {[%emt 0:00:31]} 40. Qh6 {[%emt 0:00:23]} Qf7 {[%emt 0:00:29]} 41. Rc1 {[%emt 0:00:27]} Bd8 {[%emt 0:01:33]} 42. Kb2 {[%emt 0:00:36]} Ra8 {[%emt 0:01:13]} 43. Qh5 {[%emt 0:00:29]} Qd7 {[%emt 0:00:25]} 44. Qh6 {[%emt 0:00:35]} Qf7 {[%emt 0:00:13]} 45. Rc4 {[%emt 0:00:19]} Qa7 {[%emt 0:00:30]} 46. a4 {[%emt 0:00:39]} Qf2+ {[%emt 0:00:34]} 47. Ka3 {[%emt 0:00:29]} Qg1 {[%emt 0:00:38]} 48. Nxf6+ {[%emt 0:00:35]} Bxf6 {[%emt 0:00:08]} 49. Qxf6 {[%emt 0:00:06]} Qa1+ {[%emt 0:00:15]} 50. Kb4 {[%emt 0:00:00]} Qe1+ {[%emt 0:00:07]} 51. Kb5 {[%emt 0:00:56]} Qa5+ {[%emt 0:00:11]} 52. Kc6 {[%emt 0:00:20]} Qa6+ {[%emt 0:00:16]} 53. Kd5 {[%emt 0:00:34]} Qb7+ {[%emt 0:00:24]} 54. Kxd6 {[%emt 0:00:31]} Ra6+ {[%emt 0:00:04]} 55. Kxe5 {[%emt 0:00:09]} Rxf6 {[%emt 0:00:06]} 56. Kxf6 {[%emt 0:00:03]} Qb6+ {[%emt 0:00:14]} 57. Ke7 {[%emt 0:00:32]} Qb7+ {[%emt 0:00:01]} 58. Kf6 {[%emt 0:00:25]} Qb6+ {[%emt 0:00:11]} 59. Ke7 {[%emt 0:01:25]} Qb7+ {[%emt 0:00:01]} 60. Kf6 {[%emt 0:00:42]} Qb6+ {[%emt 0:00:32]} 61. Ke7 {[%emt 0:00:47]} Qb7+ {[%emt 0:00:04]} 62. Kf6 {[%emt 0:00:30]} Qb6+ {[%emt 0:00:06]} 1/2-1/2

[Event "FIDE WCCC Girls-12 2024"]
[Site "Montesilvano"]
[Date "2024.11.18"]
[Round "2.29"]
[White "Siskou, Evangelia"]
[Black "Potikha, Shelley"]
[Result "1/2-1/2"]
[ECO "C15"]
[WhiteElo "1884"]
[BlackElo "1561"]
[PlyCount "110"]
[EventDate "2024.11.18"]
[EventType "swiss"]
[EventCountry "ITA"]
[TimeControl "5400+30"]

1. e4 {[%emt 0:00:07]} e6 {[%emt 0:00:08]} 2. d4 {[%emt 0:00:06]} d5 {[%emt 0:00:06]} 3. Nc3 {[%emt 0:00:06]} Bb4 {[%emt 0:00:20]} 4. Nge2 {[%emt 0:00:07]} dxe4 {[%emt 0:00:32]} 5. a3 {[%emt 0:00:06]} Bxc3+ {[%emt 0:00:27]} 6. Nxc3 {[%emt 0:00:11]} Nc6 {[%emt 0:00:27]} 7. d5 {[%emt 0:00:10]} exd5 {[%emt 0:00:16]} 8. Qxd5 {[%emt 0:00:07]} Be6 {[%emt 0:00:10]} 9. Qxd8+ {[%emt 0:00:08]} Rxd8 {[%emt 0:00:17]} 10. Bf4 {[%emt 0:00:07]} f5 {[%emt 0:00:26]} 11. Bxc7 {[%emt 0:00:08]} Rd7 {[%emt 0:00:06]} 12. Bf4 {[%emt 0:00:06]} Kf7 {[%emt 0:00:17]} 13. Rd1 {[%emt 0:00:06]} Nd4 {[%emt 0:15:14]} 14. Rd2 {[%emt 0:00:06]} Ne7 {[%emt 0:03:59]} 15. Nb5 {[%emt 0:06:47]} Nxb5 {[%emt 0:09:21]} 16. Bxb5 {[%emt 0:00:02]} Rxd2 {[%emt 0:00:33]} 17. Kxd2 {[%emt 0:00:03]} Rd8+ {[%emt 0:00:30]} 18. Kc1 {[%emt 0:00:07]} Ng6 {[%emt 0:08:48]} 19. Be3 {[%emt 0:04:55]} a6 {[%emt 0:03:58]} 20. Be2 {[%emt 0:02:36]} Ne5 {[%emt 0:09:57]} 21. b3 {[%emt 0:08:58]} Ng4 {[%emt 0:07:12]} 22. Bf4 {[%emt 0:04:10]} Rc8 {[%emt 0:12:18]} 23. Bxg4 {[%emt 0:07:41]} fxg4 {[%emt 0:00:37]} 24. Kb2 {[%emt 0:01:39]} Bf5 {[%emt 0:03:00]} 25. Be3 {[%emt 0:02:46]} Rd8 {[%emt 0:02:11]} 26. Re1 {[%emt 0:08:43]} h5 {[%emt 0:03:49]} 27. Bg5 {[%emt 0:06:54]} Rd7 {[%emt 0:00:50]} 28. c4 {[%emt 0:00:57]} b5 {[%emt 0:03:33]} 29. cxb5 {[%emt 0:01:32]} axb5 {[%emt 0:00:08]} 30. Rc1 {[%emt 0:00:09]} Kg6 {[%emt 0:06:29]} 31. Be3 {[%emt 0:00:34]} Rd5 {[%emt 0:02:39]} 32. Rc5 {[%emt 0:09:44]} Rxc5 {[%emt 0:01:40]} 33. Bxc5 {[%emt 0:00:02]} Kf7 {[%emt 0:00:57]} 34. Kc3 {[%emt 0:00:30]} Bd7 {[%emt 0:01:18]} 35. Kb4 {[%emt 0:01:55]} Ke6 {[%emt 0:01:02]} 36. Bd4 {[%emt 0:02:09]} g6 {[%emt 0:01:23]} 37. Kc5 {[%emt 0:01:38]} Be8 {[%emt 0:01:25]} 38. Bb2 {[%emt 0:04:41]} Bd7 {[%emt 0:01:47]} 39. Bc1 {[%emt 0:06:42]} Be8 {[%emt 0:00:37]} 40. Bg5 {[%emt 0:01:55]} Bd7 {[%emt 0:00:46]} 41. g3 {[%emt 0:00:55]} Be8 {[%emt 0:00:36]} 42. Kd4 {[%emt 0:02:28]} Kf5 {[%emt 0:00:37]} 43. Bd8 {[%emt 0:00:20]} Bd7 {[%emt 0:00:30]} 44. Kd5 {[%emt 0:02:48]} Be6+ {[%emt 0:00:42]} 45. Kc6 {[%emt 0:00:01]} Bxb3 {[%emt 0:00:29]} 46. Kxb5 {[%emt 0:00:02]} Ke6 {[%emt 0:00:26]} 47. a4 {[%emt 0:00:32]} Kd7 {[%emt 0:00:19]} 48. Bb6 {[%emt 0:00:03]} Kc8 {[%emt 0:00:45]} 49. a5 {[%emt 0:00:02]} Kb7 {[%emt 0:00:29]} 50. a6+ {[%emt 0:00:01]} Ka8 {[%emt 0:00:09]} 51. Kc5 {[%emt 0:00:12]} Be6 {[%emt 0:00:13]} 52. Kc6 {[%emt 0:02:39]} Bf5 {[%emt 0:00:57]} 53. a7 {[%emt 0:01:04]} Be6 {[%emt 0:00:42]} 54. Be3 {[%emt 0:00:15]} Bf5 {[%emt 0:00:11]} 55. Kd6 {[%emt 0:00:01]} Kb7 {[%emt 0:00:28]} 1/2-1/2